fUSD/lending_fUSD_20260326
["ID","MTS","AMOUNT","RATE_DAILY","PERIOD"]
[418928437,1774567878490,-301.16443081,0.00042275,2]
[418928438,1774567878500,-300.0,0.00042275,2]
[418928439,1774567878510,-600.4340086,0.00042275,2]
[418928440,1774567878520,-556.19306786,0.00042275,2]
[418928441,1774567878529,-300.5033133,0.00042275,2]
[418928442,1774567878539,-1059.82528078,0.00042275,2]
[418928443,1774567878549,-1139.5082465,0.00042275,2]
[418928444,1774567878558,-307.52441532,0.00042275,2]
[418928445,1774567878568,-858.71189518,0.00042275,2]
[418928446,1774567878577,-308.80362303,0.00042275,2]
[418928447,1774567878587,-460.762979,0.00042275,2]
[418928448,1774567878597,-300.0,0.00042275,2]
[418928449,1774567878606,-448.8360747,0.00042275,2]
[418928450,1774567878616,-302.84281811,0.00042275,2]
[418928451,1774567878626,-521.1871973,0.00042275,2]
[418928452,1774567878635,-307.76157459,0.00042275,2]
[418928453,1774567878645,-300.0,0.00042275,2]
[418928454,1774567878656,-1087.37816067,0.00042275,2]
[418928455,1774567878666,-300.0,0.00042275,2]
[418928456,1774567878675,-301.16443081,0.00042275,2]
[418928457,1774567878685,-300.0,0.00042275,2]
[418928458,1774567878695,-600.4340086,0.00042275,2]
[418928459,1774567878705,-556.19306786,0.00042275,2]
[418928460,1774567878715,-300.5033133,0.00042275,2]
[418928461,1774567878727,-1059.82528078,0.00042275,2]
[418928462,1774567878737,-1139.5082465,0.00042275,2]
[418928463,1774567878746,-307.52441532,0.00042275,2]
[418928464,1774567878756,-858.71189518,0.00042275,2]
[418928465,1774567878766,-308.80362305,0.00042275,2]
[418928466,1774567878776,-460.762979,0.00042275,2]
[418928467,1774567878786,-300.0,0.00042275,2]
[418928468,1774567878796,-448.8360747,0.00042275,2]
[418928469,1774567878806,-302.84281813,0.00042275,2]
[418928470,1774567878818,-521.18719731,0.00042275,2]
[418928471,1774567879025,-307.76157459,0.00042275,2]
[418928472,1774567879035,-300.0,0.00042275,2]
[418928473,1774567879048,-1087.37816067,0.00042275,2]
[418928474,1774567879058,-300.0,0.00042275,2]
[418928475,1774567879068,-301.16443081,0.00042275,2]
[418928476,1774567879077,-300.0,0.00042275,2]
[418928477,1774567879087,-600.4340086,0.00042275,2]
[418928478,1774567879096,-556.19306786,0.00042275,2]
[418928479,1774567879106,-300.5033133,0.00042275,2]
[418928480,1774567879116,-1139.5082465,0.00042275,2]
[418928481,1774567879126,-307.5244153,0.00042275,2]
[418928482,1774567879136,-858.71189518,0.00042275,2]
[418928483,1774567879148,-308.80362305,0.00042275,2]
[418928484,1774567879157,-460.762979,0.00042275,2]
[418928485,1774567879167,-300.0,0.00042275,2]
[418928486,1774567879179,-448.8360747,0.00042275,2]
[418928487,1774567879189,-302.84281811,0.00042275,2]
[418928488,1774567879199,-521.18719729,0.00042275,2]
[418928489,1774567879208,-307.76157459,0.00042275,2]
[418928490,1774567879218,-300.0,0.00042275,2]
[418928491,1774567879228,-1087.37816071,0.00042275,2]
[418928492,1774567879238,-300.0,0.00042275,2]
[418928493,1774567879248,-301.16443081,0.00042275,2]
[418928494,1774567879259,-300.0,0.00042275,2]
[418928495,1774567879268,-600.4340086,0.00042275,2]
[418928496,1774567879278,-556.19306786,0.00042275,2]
[418928497,1774567879288,-300.5033133,0.00042275,2]
[418928498,1774567879297,-1139.5082465,0.00042275,2]
[418928499,1774567879307,-307.5244153,0.00042275,2]
[418928500,1774567879316,-858.71189518,0.00042275,2]
[418928501,1774567879326,-308.80362303,0.00042275,2]
[418928502,1774567879336,-460.762979,0.00042275,2]
[418928503,1774567879345,-300.0,0.00042275,2]
[418928504,1774567879355,-448.8360747,0.00042275,2]
[418928505,1774567879364,-302.84281813,0.00042275,2]
[418928506,1774567879374,-521.1871973,0.00042275,2]
[418928507,1774567879383,-307.76157459,0.00042275,2]
[418928508,1774567879393,-300.0,0.00042275,2]
[418928509,1774567879403,-550.0,0.00042275,2]
[418928510,1774567879412,-1087.37816067,0.00042275,2]
[418928511,1774567879422,-300.0,0.00042275,2]
[418928512,1774567879431,-301.16443081,0.00042275,2]
[418928513,1774567879441,-300.0,0.00042275,2]
[418928514,1774567879451,-600.4340086,0.00042275,2]
[418928515,1774567879460,-556.19306786,0.00042275,2]
[418928516,1774567879470,-300.5033133,0.00042275,2]
[418928517,1774567879479,-1139.5082465,0.00042275,2]
[418928518,1774567879489,-307.52441533,0.00042275,2]
[418928519,1774567879498,-858.71189518,0.00042275,2]
[418928520,1774567879507,-308.80362305,0.00042275,2]
[418928521,1774567879516,-460.762979,0.00042275,2]
[418928522,1774567879526,-300.0,0.00042275,2]
[418928523,1774567879536,-448.83607471,0.00042275,2]
[418928524,1774567879546,-302.84281811,0.00042275,2]
[418928525,1774567879556,-521.1871973,0.00042275,2]
[418928526,1774567879565,-307.76157459,0.00042275,2]
[418928527,1774567879575,-300.0,0.00042275,2]
[418928528,1774567879584,-1087.37816069,0.00042275,2]
[418928529,1774567879594,-300.0,0.00042275,2]
[418928530,1774567879603,-301.16443081,0.00042275,2]
[418928531,1774567879612,-304.74958334,0.00042275,2]
[418928532,1774567879622,-600.4340086,0.00042275,2]
[418928533,1774567879631,-556.19306786,0.00042275,2]
[418928534,1774567879641,-300.5033133,0.00042275,2]
[418928535,1774567879650,-1059.82528078,0.00042275,2]
[418928536,1774567879660,-1139.5082465,0.00042275,2]
[418928537,1774567879670,-307.5244153,0.00042275,2]
[418928538,1774567879680,-1138.17841593,0.00042275,2]
[418928539,1774567879690,-409.30365892,0.00042275,2]
[418928540,1774567879699,-460.762979,0.00042275,2]
[418928541,1774567879708,-300.0,0.00042275,2]
[418928542,1774567879718,-594.9097738,0.00042275,2]
[418928543,1774567879727,-302.84281811,0.00042275,2]
[418928544,1774567879737,-521.18719731,0.00042275,2]
[418928545,1774567879747,-307.76157459,0.00042275,2]
[418928546,1774567879757,-300.0,0.00042275,2]
[418928547,1774567879767,-300.0,0.00042275,2]
[418928548,1774567879776,-1087.37816069,0.00042275,2]
[418928549,1774567879786,-300.0,0.00042275,2]
[418928550,1774567879796,-301.16443081,0.00042275,2]
[418928551,1774567879806,-600.4340086,0.00042275,2]
[418928552,1774567879815,-556.19306786,0.00042275,2]
[418928553,1774567879825,-300.5033133,0.00042275,2]
[418928554,1774567879834,-1059.82528078,0.00042275,2]
[418928555,1774567879844,-1139.5082465,0.00042275,2]
[418928556,1774567879854,-307.52441532,0.00042275,2]
[418928557,1774567879864,-460.762979,0.00042275,2]
[418928558,1774567879873,-300.0,0.00042275,2]
[418928559,1774567879883,-302.84281811,0.00042275,2]
[418928560,1774567879893,-521.18719729,0.00042275,2]
[418928561,1774567879903,-307.76157459,0.00042275,2]
[418928562,1774567879914,-300.0,0.00042275,2]
[418928563,1774567879924,-1087.37816067,0.00042275,2]
[418928564,1774567879934,-370.23657456,0.00042275,2]
[418928565,1774567879944,-301.16443081,0.00042275,2]
[418928566,1774567879954,-600.4340086,0.00042275,2]
[418928567,1774567879964,-556.19306786,0.00042275,2]
[418928568,1774567879974,-300.5033133,0.00042275,2]
[418928569,1774567879983,-1059.82528078,0.00042275,2]
[418928570,1774567879993,-1139.5082465,0.00042275,2]
[418928571,1774567880003,-307.5244153,0.00042275,2]
[418928572,1774567880012,-614.35063869,0.00042275,2]
[418928573,1774567880022,-300.0,0.00042275,2]
[418928574,1774567880031,-521.1871973,0.00042275,2]
[418928575,1774567880041,-410.34876626,0.00042275,2]
[418928576,1774567880050,-300.0,0.00042275,2]
[418928577,1774567880059,-1087.37816067,0.00042275,2]
[418928578,1774567880069,-301.16443081,0.00042275,2]
[418928579,1774567880078,-600.4340086,0.00042275,2]
[418928580,1774567880088,-556.19306786,0.00042275,2]
[418928581,1774567880097,-300.5033133,0.00042275,2]
[418928582,1774567880107,-1059.82528078,0.00042275,2]
[418928583,1774567880117,-1139.5082465,0.00042275,2]
[418928584,1774567880127,-307.52441532,0.00042275,2]
[418928585,1774567880136,-398.84211301,0.00042275,2]
[418928586,1774567880146,-521.1871973,0.00042275,2]
[418928587,1774567880156,-300.0,0.00042275,2]
[418928588,1774567880167,-1087.37816069,0.00042275,2]
[418928589,1774567880176,-301.16443081,0.00042275,2]
[418928590,1774567880186,-600.4340086,0.00042275,2]
[418928591,1774567880196,-556.19306786,0.00042275,2]
[418928592,1774567880205,-400.67108467,0.00042275,2]
[418928593,1774567880215,-1059.82528079,0.00042275,2]
[418928594,1774567880224,-379.83608227,0.00042275,2]
[418928595,1774567880234,-410.03255383,0.00042275,2]
[418928596,1774567880245,-521.18719731,0.00042275,2]
[418928597,1774567880254,-1087.37816067,0.00042275,2]
[418928598,1774567880263,-301.16443081,0.00042275,2]
[418928599,1774567880273,-600.4340086,0.00042275,2]
[418928600,1774567880283,-556.19306786,0.00042275,2]
[418928601,1774567880292,-1059.82528078,0.00042275,2]
[418928602,1774567880302,-1087.37816069,0.00042275,2]
[418928603,1774567880312,-401.55257446,0.00042275,2]
[418928604,1774567880322,-600.4340086,0.00042275,2]
[418928605,1774567880331,-741.59075735,0.00042275,2]
[418928606,1774567880340,-1059.82528078,0.00042275,2]
[418928607,1774567880350,-250.0,0.00042282,30]
[418928608,1774567880360,-250.0,0.00042282,30]
[418928609,1774567880370,-250.0,0.00042282,30]
[418928610,1774567880379,-250.0,0.00042282,30]
[418928611,1774567880389,-4685.5531,0.00042282,2]
[418928612,1774567880399,-2139.0934,0.00042282,2]
[418928613,1774567880409,-80571.2766,0.000423,2]
[418928614,1774567880418,-301025.0,0.000423,60]
[418928615,1774567880428,-2000.0,0.000424,30]
[418928616,1774567880437,-154.0,0.000424,120]
[418928617,1774567880448,-152.76356087,0.0004243,30]
[418928618,1774567880458,-150.0,0.0004243,30]
[418928619,1774567880467,-150.0,0.0004243,30]
[418928620,1774567880479,-150.0,0.0004243,30]
[418928621,1774567880488,-150.0,0.0004243,30]
[418928622,1774567880498,-150.0,0.0004243,30]
[418928623,1774567880508,-364.90615692,0.0004243,30]
[418928624,1774567880518,-150.0,0.0004243,30]
[418928625,1774567880528,-150.0,0.0004243,30]
[418928626,1774567880538,-185.8894231,0.0004243,30]
[418928627,1774567880548,-150.0,0.0004243,30]
[418928628,1774567880558,-150.0,0.0004243,30]
[418928629,1774567880567,-150.0,0.0004243,30]
[418928630,1774567880577,-150.0,0.0004243,30]
[418928631,1774567880587,-150.0,0.0004243,30]
[418928632,1774567880596,-150.0,0.0004243,30]
[418928633,1774567880606,-504.0,0.00042431,26]
[418928634,1774567880616,-4685.5531,0.00042433,2]
[418928635,1774567880625,-500.0,0.00042438,120]
[418928636,1774567880635,-1990.0,0.00042465,120]
[418928637,1774567880644,-250.0,0.00042466,120]
[418928638,1774567880655,-2100.82,0.00042466,120]
[418928639,1774567880665,-152.76356087,0.00042477,30]
[418928640,1774567880675,-364.90615692,0.00042477,30]
[418928641,1774567880684,-185.8894231,0.00042477,30]
[418928642,1774567880694,-234.62081,0.0004248,120]
[418928643,1774567880704,-150.0,0.00042481,30]
[418928644,1774567880714,-150.0,0.00042481,30]
[418928645,1774567880724,-150.0,0.00042493,30]
[418928646,1774567880733,-1555.65948767,0.000425,120]
[418928647,1774567880743,-6399.21,0.000425,120]
[418928648,1774567880753,-3571.37,0.000425,120]
[418928649,1774567880762,-150.0,0.00042502,30]
[418928650,1774567880772,-152.76356087,0.00042525,30]
[418928651,1774567880782,-364.90615692,0.00042525,30]
[418928652,1774567880791,-185.8894231,0.00042525,30]
[418928653,1774567880800,-1640.97,0.00042531,2]
[418928654,1774567880810,-150.0,0.00042532,30]
[418928655,1774567880820,-150.0,0.00042532,30]
[418928656,1774567880829,-250.0,0.00042537,92]
[418928657,1774567880838,-2500.0,0.00042538,2]
[418928658,1774567880848,-2139.0934,0.00042546,2]
[418928659,1774567880857,-150.0,0.00042554,30]
[418928660,1774567880867,-150.0,0.00042557,30]
[418928661,1774567880876,-150.0,0.00042561,30]
[418928662,1774567880886,-152.76356087,0.00042572,30]
[418928663,1774567880895,-364.90615692,0.00042572,30]
[418928664,1774567880904,-185.8894231,0.00042572,30]
[418928665,1774567880915,-150.0,0.00042575,30]
[418928666,1774567880925,-500.0,0.00042575,120]
[418928667,1774567880935,-150.0,0.00042583,30]
[418928668,1774567880944,-150.0,0.00042583,30]
[418928669,1774567880953,-4685.5531,0.00042584,2]
[418928670,1774567880963,-10000.0,0.000426,14]
[418928671,1774567880972,-152.76356087,0.0004262,30]
[418928672,1774567880981,-364.90615692,0.0004262,30]
[418928673,1774567880991,-185.8894231,0.0004262,30]
[418928674,1774567881000,-150.0,0.00042621,30]
[418928675,1774567881009,-150.0,0.00042635,30]
[418928676,1774567881018,-150.0,0.00042635,30]
[418928677,1774567881027,-150.0,0.00042635,30]
[418928678,1774567881036,-150.0,0.00042647,30]
[418928679,1774567881046,-152.76356087,0.00042668,30]
[418928680,1774567881055,-364.90615692,0.00042668,30]
[418928681,1774567881065,-185.8894231,0.00042668,30]
[418928682,1774567881074,-150.0,0.00042678,30]
[418928683,1774567881083,-150.0,0.00042684,30]
[418928684,1774567881093,-150.0,0.00042686,30]
[418928685,1774567881103,-150.0,0.00042686,30]
[418928686,1774567881112,-150.0,0.00042692,30]
[418928687,1774567881122,-154.0,0.000427,120]
[418928688,1774567881131,-500.0,0.00042712,120]
[418928689,1774567881140,-152.76356087,0.00042715,30]
[418928690,1774567881150,-364.90615692,0.00042715,30]
[418928691,1774567881159,-185.8894231,0.00042715,30]
[418928692,1774567881169,-150.0,0.0004272,30]
[418928693,1774567881178,-4685.5531,0.00042735,2]
[418928694,1774567881188,-150.0,0.00042737,30]
[418928695,1774567881198,-150.0,0.00042737,30]
[418928696,1774567881207,-1990.0,0.00042739,120]
[418928697,1774567881217,-4000.0,0.0004274,14]
[418928698,1774567881227,-450.0,0.0004274,10]
[418928699,1774567881238,-2100.82,0.0004274,120]
[418928700,1774567881248,-150.0,0.00042748,30]
[418928701,1774567881258,-152.76356087,0.00042763,30]
[418928702,1774567881267,-364.90615692,0.00042763,30]
[418928703,1774567881277,-185.8894231,0.00042763,30]
[418928704,1774567881287,-150.0,0.00042788,30]
[418928705,1774567881297,-150.0,0.00042788,30]
[418928706,1774567881306,-150.0,0.00042792,30]
[418928707,1774567881317,-347.7777,0.000428,120]
[418928708,1774567881327,-284.35972496,0.000428,120]
[418928709,1774567881390,-125000.0,0.000428,2]
[418928710,1774567881400,-25000.0,0.000428,2]
[418928711,1774567881409,-376.7758,0.000428,90]
[418928712,1774567881419,-161.65,0.000428,90]
[418928713,1774567881428,-150.0,0.00042802,30]
[418928714,1774567881437,-2139.0934,0.0004281,2]
[418928715,1774567881447,-152.76356087,0.00042811,30]
[418928716,1774567881456,-364.90615692,0.00042811,30]
[418928717,1774567881466,-185.8894231,0.00042811,30]
[418928718,1774567881475,-150.0,0.00042812,30]
[418928719,1774567881484,-150.0,0.00042822,30]
[418928720,1774567881494,-151.0,0.00042834,2]
[418928721,1774567881503,-150.0,0.0004284,30]
[418928722,1774567881512,-150.0,0.0004284,30]
[418928723,1774567881522,-150.0,0.0004284,30]
[418928724,1774567881531,-500.0,0.00042849,120]
[418928725,1774567881540,-152.76356087,0.00042858,30]
[418928726,1774567881549,-364.90615692,0.00042858,30]
[418928727,1774567881559,-185.8894231,0.00042858,30]
[418928728,1774567881569,-150.0,0.00042865,30]
[418928729,1774567881578,-156.87210559,0.0004287,2]
[418928730,1774567881588,-81680.7426423,0.0004287,2]
[418928731,1774567881598,-150.0,0.00042876,30]
[418928732,1774567881607,-5464.18455577,0.0004288,60]
[418928733,1774567881617,-4685.5531,0.00042886,2]
[418928734,1774567881626,-51665.61128584,0.00042887,30]
[418928735,1774567881636,-744.34273757,0.00042888,120]
[418928736,1774567881646,-150.0,0.00042891,30]
[418928737,1774567881656,-150.0,0.00042891,30]
[418928738,1774567881665,-2000.0,0.000429,3]
[418928739,1774567881675,-5000.0,0.000429,120]
[418928740,1774567881684,-152.76356087,0.00042906,30]
[418928741,1774567881694,-364.90615692,0.00042906,30]
[418928742,1774567881703,-185.8894231,0.00042906,30]
[418928743,1774567881712,-150.0,0.00042926,30]
[418928744,1774567881722,-150.0,0.00042937,30]
[418928745,1774567881732,-150.0,0.00042939,30]
[418928746,1774567881741,-150.0,0.00042942,30]
[418928747,1774567881750,-150.0,0.00042942,30]
[418928748,1774567881759,-205.0,0.0004295,30]
[418928749,1774567881769,-152.76356087,0.00042953,30]
[418928750,1774567881778,-364.90615692,0.00042953,30]
[418928751,1774567881787,-185.8894231,0.00042953,30]
[418928752,1774567881796,-150.0,0.00042953,30]
[418928753,1774567881806,-150.0,0.00042953,30]
[418928754,1774567881815,-500.0,0.00042984,120]
[418928755,1774567881824,-150.0,0.00042993,30]
[418928756,1774567881834,-150.0,0.00042993,30]
[418928757,1774567881843,-737.3668221,0.00043,120]
[418928758,1774567881853,-870.97210806,0.00043,120]
[418928759,1774567881862,-1000.0,0.00043,120]
[418928760,1774567881871,-150.0,0.00043,120]
[418928761,1774567881880,-220.86,0.00043,120]
[418928762,1774567881890,-14847.0,0.00043,120]
[418928763,1774567881899,-500.0,0.00043,120]
[418928764,1774567881908,-545.0,0.00043,120]
[418928765,1774567881918,-822.0,0.00043,100]
[418928766,1774567881927,-3296.28,0.00043,120]
[418928767,1774567881937,-152.43491877,0.00043,120]
[418928768,1774567881946,-6527.2,0.00043,120]
[418928769,1774567881955,-3642.8,0.00043,120]
[418928770,1774567881965,-9270.0722762,0.00043,30]
[418928771,1774567881974,-647.64,0.00043,120]
[418928772,1774567881983,-183.12784123,0.00043,10]
[418928773,1774567881993,-152.76356087,0.00043001,30]
[418928774,1774567882003,-364.90615692,0.00043001,30]
[418928775,1774567882013,-185.8894231,0.00043001,30]
[418928776,1774567882022,-150.0,0.00043003,30]
[418928777,1774567882031,-150.0,0.0004301,30]
[418928778,1774567882040,-1990.0,0.00043013,120]
[418928779,1774567882050,-2100.82,0.00043014,120]
[418928780,1774567882060,-4685.5531,0.00043037,2]
[418928781,1774567882070,-150.0,0.00043045,30]
[418928782,1774567882079,-150.0,0.00043045,30]
[418928783,1774567882089,-150.0,0.00043045,30]
[418928784,1774567882098,-152.76356087,0.00043049,30]
[418928785,1774567882108,-364.90615692,0.00043049,30]
[418928786,1774567882118,-185.8894231,0.00043049,30]
[418928787,1774567882128,-150.0,0.0004305,30]
[418928788,1774567882138,-150.0,0.00043067,30]
[418928789,1774567882149,-2139.0934,0.00043074,2]
[418928790,1774567882159,-1094.5,0.00043075,30]
[418928791,1774567882169,-150.0,0.00043082,30]
[418928792,1774567882179,-150.0,0.00043084,30]
[418928793,1774567882189,-150.0,0.00043096,30]
[418928794,1774567882198,-150.0,0.00043096,30]
[418928795,1774567882208,-152.76356087,0.00043096,30]
[418928796,1774567882217,-364.90615692,0.00043096,30]
[418928797,1774567882227,-185.8894231,0.00043096,30]
[418928798,1774567882237,-1119.05556126,0.000431,120]
[418928799,1774567882246,-150.0,0.0004313,30]
[418928800,1774567882256,-156.87210559,0.00043144,2]
[418928801,1774567882265,-152.76356087,0.00043144,30]
[418928802,1774567882275,-364.90615692,0.00043144,30]
[418928803,1774567882286,-185.8894231,0.00043144,30]
[418928804,1774567882296,-151.0,0.00043144,60]
[418928805,1774567882305,-150.0,0.00043147,30]
[418928806,1774567882315,-150.0,0.00043147,30]
[418928807,1774567882325,-150.0,0.00043155,30]
[418928808,1774567882335,-150.0,0.00043174,30]
[418928809,1774567882345,-4685.5531,0.00043188,2]
[418928810,1774567882354,-152.76356087,0.00043192,30]
[418928811,1774567882364,-364.90615692,0.00043192,30]
[418928812,1774567882374,-185.8894231,0.00043192,30]
[418928813,1774567882384,-150.0,0.00043194,30]
[418928814,1774567882393,-150.0,0.00043198,30]
[418928815,1774567882403,-150.0,0.00043198,30]
[418928816,1774567882414,-150.0,0.00043199,2]
[418928817,1774567882423,-150.0,0.00043199,2]
[418928818,1774567882433,-150.0,0.00043199,2]
[418928819,1774567882442,-150.0,0.00043199,2]
[418928820,1774567882451,-150.0,0.00043199,2]
[418928821,1774567882460,-150.0,0.00043199,2]
[418928822,1774567882470,-150.0,0.00043199,2]
[418928823,1774567882479,-150.0,0.00043199,2]
[418928824,1774567882488,-150.0,0.00043199,2]
[418928825,1774567882498,-150.0,0.00043199,2]
[418928826,1774567882507,-150.0,0.00043199,2]
[418928827,1774567882516,-150.0,0.00043199,2]
[418928828,1774567882531,-150.0,0.00043199,2]
[418928829,1774567882540,-247.34225369,0.00043199,2]
[418928830,1774567882550,-150.0,0.00043215,30]
[418928831,1774567882560,-150.0,0.00043227,30]
[418928832,1774567882569,-152.76356087,0.00043239,30]
[418928833,1774567882578,-364.90615692,0.00043239,30]
[418928834,1774567882588,-185.8894231,0.00043239,30]
[418928835,1774567882597,-150.0,0.00043249,30]
[418928836,1774567882606,-150.0,0.00043249,30]
[418928837,1774567882616,-150.0,0.00043249,30]
[418928838,1774567882625,-150.0,0.00043258,30]
[418928839,1774567882634,-152.76356087,0.00043287,30]
[418928840,1774567882644,-364.90615692,0.00043287,30]
[418928841,1774567882653,-185.8894231,0.00043287,30]
[418928842,1774567882664,-1990.0,0.00043287,120]
[418928843,1774567882674,-633.21929893,0.00043288,10]
[418928844,1774567882683,-2100.82,0.00043288,120]
[418928845,1774567882692,-210.40762625,0.00043295,120]
[418928846,1774567882702,-150.0,0.00043298,30]
[418928847,1774567882712,-150.0,0.000433,30]
[418928848,1774567882722,-721.86,0.000433,7]
[418928849,1774567882731,-5281.0,0.000433,120]
[418928850,1774567882740,-150.0,0.00043301,30]
[418928851,1774567882750,-150.0,0.00043301,30]
[418928852,1774567882759,-985143.46238602,0.00043321,2]
[418928853,1774567882768,-92568.73119301,0.00043321,3]
[418928854,1774567882778,-92574.73119301,0.00043321,4]
[418928855,1774567882787,-150.0,0.00043322,30]
[418928856,1774567882796,-152.76356087,0.00043334,30]
[418928857,1774567882806,-364.90615692,0.00043334,30]
[418928858,1774567882815,-185.8894231,0.00043334,30]
[418928859,1774567882824,-4685.5531,0.00043339,2]
[418928860,1774567882834,-2139.0934,0.00043339,2]
[418928861,1774567882844,-1640.97,0.0004334,2]
[418928862,1774567882853,-150.0,0.00043346,30]
[418928863,1774567882862,-150.0,0.00043352,30]
[418928864,1774567882872,-150.0,0.00043352,30]
[418928865,1774567882882,-150.0,0.00043372,30]
[418928866,1774567882891,-150.0,0.00043372,30]
[418928867,1774567882900,-152.76356087,0.00043382,30]
[418928868,1774567882911,-364.90615692,0.00043382,30]
[418928869,1774567882920,-185.8894231,0.00043382,30]
[418928870,1774567882930,-150.0,0.00043385,30]
[418928871,1774567882939,-150.0,0.00043403,30]
[418928872,1774567882949,-150.0,0.00043403,30]
[418928873,1774567882958,-6751.61,0.00043415,30]
[418928874,1774567882967,-156.87210559,0.00043418,2]
[418928875,1774567882977,-150.0,0.00043422,30]
[418928876,1774567882986,-152.76356087,0.0004343,30]
[418928877,1774567882996,-364.90615692,0.0004343,30]
[418928878,1774567883006,-185.8894231,0.0004343,30]
[418928879,1774567883016,-119107.09654538,0.00043444,4]
[418928880,1774567883025,-150.0,0.00043445,30]
[418928881,1774567883035,-504.0,0.00043446,27]
[418928882,1774567883044,-150.0,0.00043449,30]
[418928883,1774567883053,-150.0,0.00043454,30]
[418928884,1774567883062,-150.0,0.00043454,30]
[418928885,1774567883072,-150.0,0.00043454,30]
[418928886,1774567883081,-152.76356087,0.00043477,30]
[418928887,1774567883091,-364.90615692,0.00043477,30]
[418928888,1774567883100,-185.8894231,0.00043477,30]
[418928889,1774567883110,-150.0,0.00043477,30]
[418928890,1774567883120,-150.0,0.00043477,30]
[418928891,1774567883129,-4685.5531,0.0004349,2]
[418928892,1774567883139,-122567.80084905,0.000435,30]
[418928893,1774567883148,-50998.91549309,0.000435,30]
[418928894,1774567883158,-6657.74,0.000435,120]
[418928895,1774567883168,-3715.65,0.000435,120]
[418928896,1774567883178,-296.80740231,0.000435,120]
[418928897,1774567883187,-150.0,0.00043506,30]
[418928898,1774567883197,-150.0,0.00043506,30]
[418928899,1774567883207,-150.0,0.00043513,30]
[418928900,1774567883216,-150.0,0.00043518,30]
[418928901,1774567883226,-152.76356087,0.00043525,30]
[418928902,1774567883235,-364.90615692,0.00043525,30]
[418928903,1774567883246,-185.8894231,0.00043525,30]
[418928904,1774567883256,-150.0,0.00043546,30]
[418928905,1774567883265,-150.0,0.00043557,30]
[418928906,1774567883276,-150.0,0.00043557,30]
[418928907,1774567883285,-1990.0,0.00043561,120]
[418928908,1774567883295,-2100.82,0.00043562,120]
[418928909,1774567883305,-152.76356087,0.00043572,30]
[418928910,1774567883315,-364.90615692,0.00043572,30]
[418928911,1774567883325,-185.8894231,0.00043572,30]
[418928912,1774567883335,-7193.11212165,0.00043575,5]
[418928913,1774567883345,-150.0,0.00043576,30]
[418928914,1774567883354,-150.0,0.0004359,30]
[418928915,1774567883364,-154.0,0.000436,120]
[418928916,1774567883374,-299.77,0.000436,90]
[418928917,1774567883383,-2139.0934,0.00043603,2]
[418928918,1774567883393,-150.0,0.00043608,30]
[418928919,1774567883403,-150.0,0.00043608,30]
[418928920,1774567883413,-150.0,0.00043608,30]
[418928921,1774567883422,-150.0,0.00043608,30]
[418928922,1774567883432,-152.76356087,0.0004362,30]
[418928923,1774567883442,-364.90615692,0.0004362,30]
[418928924,1774567883452,-185.8894231,0.0004362,30]
[418928925,1774567883461,-150.0,0.0004364,30]
[418928926,1774567883471,-4685.5531,0.00043641,2]
[418928927,1774567883481,-301025.0,0.0004365,60]
[418928928,1774567883491,-150.0,0.00043659,30]
[418928929,1774567883500,-150.0,0.00043659,30]
[418928930,1774567883511,-150.0,0.00043659,30]
[418928931,1774567883521,-150.0,0.00043663,30]
[418928932,1774567883531,-152.76356087,0.00043668,30]
[418928933,1774567883540,-364.90615692,0.00043668,30]
[418928934,1774567883551,-185.8894231,0.00043668,30]
[418928935,1774567883561,-150.0,0.0004367,30]
[418928936,1774567883571,-156.87210559,0.00043692,2]